fUST/lending_fUST_20240115
["ID","MTS","AMOUNT","RATE_DAILY","PERIOD"]
[311580670,1705254639068,-200.0,0.00024839,7]
[311580672,1705254639078,-289.61737689,0.00027,2]
[311580674,1705254639088,-460.9594683,0.00027296,2]
[311580676,1705254639097,-160.17843979,0.00027297,2]
[311580678,1705254639106,-280.0,0.00027323,15]
[311580680,1705254639115,-160.17843978,0.00027388,2]
[311580682,1705254639124,-469.94797818,0.00027394,2]
[311580684,1705254639133,-250.05144469,0.00027395,2]
[311580686,1705254639142,-179.9748,0.00027395,3]
[311580688,1705254639151,-554.53606434,0.00027395,2]
[311580690,1705254639160,-5752.27951362,0.00027395,2]
[311580692,1705254639169,-624.39939089,0.00027396,2]
[311580694,1705254639178,-20399.20146172,0.00027396,2]
[311580696,1705254639187,-551.35486565,0.00027396,2]
[311580698,1705254639197,-625.103915,0.00027396,2]
[311580700,1705254639206,-500.0,0.00027396,2]
[311580702,1705254639215,-500.0,0.00027396,2]
[311580704,1705254639224,-414.11830285,0.00027396,2]
[311580706,1705254639233,-500.0,0.00027396,2]
[311580708,1705254639242,-500.0,0.00027396,2]
[311580710,1705254639251,-500.0,0.00027396,2]
[311580712,1705254639260,-500.0,0.00027396,2]
[311580714,1705254639269,-189.9344763,0.00027396,2]
[311580716,1705254639278,-500.0,0.00027396,2]
[311580718,1705254639287,-337.88483192,0.00027396,2]
[311580720,1705254639296,-390.16161729,0.00027396,2]
[311580722,1705254639307,-500.0,0.00027396,2]
[311580724,1705254639316,-155.09538342,0.00027396,2]
[311580726,1705254639325,-279.14112323,0.00027396,2]
[311580728,1705254639336,-200.0,0.00027397,2]
[311580730,1705254639347,-509.93880506,0.00027397,2]
[311580732,1705254639356,-509.8453058,0.00027397,2]
[311580734,1705254639365,-163.85162265,0.00027397,2]
[311580736,1705254639374,-500.0,0.00027397,2]
[311580738,1705254639383,-500.0,0.00027397,2]
[311580740,1705254639392,-500.0,0.00027397,2]
[311580742,1705254639401,-500.0,0.00027397,2]
[311580744,1705254639409,-500.0,0.00027397,2]
[311580746,1705254639418,-500.0,0.00027397,2]
[311580748,1705254639427,-500.0,0.00027397,2]
[311580750,1705254639436,-500.0,0.00027397,2]
[311580752,1705254639445,-500.0,0.00027397,2]
[311580754,1705254639454,-213.28652714,0.00027397,2]
[311580756,1705254639463,-500.0,0.00027397,2]
[311580758,1705254639472,-500.0,0.00027397,2]
[311580760,1705254639480,-500.0,0.00027397,2]
[311580762,1705254639490,-500.0,0.00027397,2]
[311580764,1705254639499,-500.0,0.00027397,2]
[311580766,1705254639508,-500.0,0.00027397,2]
[311580768,1705254639516,-500.0,0.00027397,2]
[311580770,1705254639525,-500.0,0.00027397,2]
[311580772,1705254639534,-500.0,0.00027397,2]
[311580774,1705254639543,-500.0,0.00027397,2]
[311580776,1705254639552,-500.0,0.00027397,2]
[311580778,1705254639562,-500.0,0.00027397,2]
[311580780,1705254639573,-592.04810847,0.00027397,2]
[311580782,1705254639583,-500.0,0.00027397,2]
[311580784,1705254639592,-502.03303531,0.00027397,2]
[311580786,1705254639601,-500.0,0.00027397,2]
[311580788,1705254639610,-500.0,0.00027397,2]
[311580790,1705254639619,-500.0,0.00027397,2]
[311580792,1705254639628,-501.50194753,0.00027397,2]
[311580794,1705254639637,-337.43216097,0.00027397,2]
[311580803,1705254639733,-586.14625163,0.00027397,2]
[311580805,1705254639743,-500.0,0.00027397,2]
[311580807,1705254639752,-500.0,0.00027397,2]
[311580809,1705254639761,-500.0,0.00027397,2]
[311580811,1705254639771,-459.03268725,0.00027397,2]
[311580813,1705254639780,-500.0,0.00027397,2]
[311580815,1705254639789,-503.2183656,0.00027397,2]
[311580817,1705254639798,-500.0,0.00027397,2]
[311580819,1705254639807,-420.22029763,0.00027397,2]
[311580821,1705254639816,-501.79627418,0.00027397,2]
[311580822,1705254639825,-502.74171708,0.00027397,2]
[311580825,1705254639835,-500.0,0.00027397,2]
[311580826,1705254639846,-500.0,0.00027397,2]
[311580828,1705254639855,-507.93,0.00027397,2]
[311580830,1705254639863,-500.0,0.00027397,2]
[311580832,1705254639872,-514.16186221,0.00027397,2]
[311580834,1705254639880,-500.0,0.00027397,2]
[311580836,1705254639889,-1000.0,0.00027397,2]
[311580838,1705254639898,-500.0,0.00027397,2]
[311580840,1705254639907,-500.0,0.00027397,2]
[311580841,1705254639916,-219.2266799,0.00027397,2]
[311580842,1705254639924,-500.0,0.00027397,2]
[311580843,1705254639934,-500.0,0.00027397,2]
[311580844,1705254639943,-500.0,0.00027397,2]
[311580845,1705254639952,-540.1999381,0.00027397,2]
[311580846,1705254639962,-500.0,0.00027397,2]
[311580847,1705254639971,-500.0,0.00027397,2]
[311580848,1705254639981,-500.0,0.00027397,2]
[311580849,1705254639990,-500.0,0.00027397,2]
[311580850,1705254639999,-500.0,0.00027397,2]
[311580851,1705254640009,-620.59724494,0.00027397,2]
[311580853,1705254640018,-500.0,0.00027397,2]
[311580855,1705254640030,-601.55700374,0.00027397,2]
[311580857,1705254640039,-256.62702142,0.00027397,2]
[311580859,1705254640048,-300.0,0.00027397,2]
[311580861,1705254640057,-502.33023252,0.00027397,2]
[311580863,1705254640067,-500.0,0.00027397,2]
[311580865,1705254640076,-500.19236557,0.00027397,2]
[311580867,1705254640089,-500.0,0.00027397,2]
[311580869,1705254640098,-204.61135304,0.00027397,2]
[311580871,1705254640108,-500.0,0.00027397,2]
[311580873,1705254640117,-500.0,0.00027397,2]
[311580875,1705254640126,-500.0,0.00027397,2]
[311580877,1705254640135,-156.69701494,0.00027397,2]
[311580879,1705254640144,-500.0,0.00027397,2]
[311580881,1705254640153,-1000.0,0.00027397,2]
[311580883,1705254640161,-500.0,0.00027397,2]
[311580885,1705254640170,-500.0,0.00027397,2]
[311580887,1705254640179,-214.61638394,0.00027397,2]
[311580889,1705254640188,-500.0,0.00027397,2]
[311580891,1705254640197,-500.0,0.00027397,2]
[311580893,1705254640207,-1389.57,0.00027397,2]
[311580895,1705254640217,-500.0,0.00027397,2]
[311580897,1705254640226,-500.0,0.00027397,2]
[311580899,1705254640235,-500.38894424,0.00027397,2]
[311580901,1705254640244,-500.0,0.00027397,2]
[311580903,1705254640253,-641.07234229,0.00027397,2]
[311580904,1705254640262,-1000.0,0.00027397,2]
[311580906,1705254640271,-500.0,0.00027397,2]
[311580908,1705254640280,-500.0,0.00027397,2]
[311580910,1705254640289,-500.0,0.00027397,2]
[311580912,1705254640299,-500.0,0.00027397,2]
[311580914,1705254640308,-500.0,0.00027397,2]
[311580916,1705254640318,-500.0,0.00027397,2]
[311580918,1705254640327,-500.0,0.00027397,2]
[311580920,1705254640337,-500.0,0.00027397,2]
[311580922,1705254640347,-500.0,0.00027397,2]
[311580924,1705254640356,-500.0,0.00027397,2]
[311580926,1705254640364,-500.0,0.00027397,2]
[311580928,1705254640373,-225.43281937,0.00027397,2]
[311580930,1705254640382,-500.0,0.00027397,2]
[311580932,1705254640391,-202.2453661,0.00027397,2]
[311580934,1705254640400,-500.0,0.00027397,2]
[311580936,1705254640409,-500.0,0.00027397,2]
[311580938,1705254640420,-500.0,0.00027397,2]
[311580940,1705254640429,-500.0,0.00027397,2]
[311580942,1705254640438,-500.0,0.00027397,2]
[311580944,1705254640447,-952.6,0.00027397,2]
[311580946,1705254640456,-284.04382982,0.00027397,2]
[311580948,1705254640465,-500.0,0.00027397,2]
[311580950,1705254640474,-500.0,0.00027397,2]
[311580952,1705254640483,-619.6,0.00027397,2]
[311580954,1705254640492,-500.0,0.00027397,2]
[311580956,1705254640500,-627.38641808,0.00027397,2]
[311580958,1705254640509,-500.0,0.00027397,2]
[311580960,1705254640519,-500.0,0.00027397,2]
[311580962,1705254640528,-500.0,0.00027397,2]
[311580964,1705254640536,-1830.8,0.00027397,2]
[311580966,1705254640545,-252.89966959,0.00027397,2]
[311580968,1705254640554,-500.0,0.00027397,2]
[311580969,1705254640563,-500.0,0.00027397,2]
[311580971,1705254640572,-500.0,0.00027397,2]
[311580973,1705254640581,-500.0,0.00027397,2]
[311580975,1705254640590,-506.86322317,0.00027397,2]
[311580977,1705254640599,-500.0,0.00027397,2]
[311580979,1705254640608,-500.0,0.00027397,2]
[311580981,1705254640617,-579.83,0.00027397,2]
[311580983,1705254640627,-772.1,0.00027397,2]
[311580986,1705254640636,-547.80507985,0.00027397,2]
[311580988,1705254640645,-500.0,0.00027397,2]
[311580990,1705254640654,-1120.26,0.00027397,2]
[311580993,1705254640663,-500.0,0.00027397,2]
[311580995,1705254640672,-500.0,0.00027397,2]
[311580997,1705254640681,-500.0,0.00027397,2]
[311580998,1705254640690,-500.0,0.00027397,2]
[311580999,1705254640699,-500.0,0.00027397,2]
[311581000,1705254640708,-1091.52,0.00027397,2]
[311581001,1705254640717,-705.43,0.00027397,2]
[311581003,1705254640727,-538.21,0.00027397,2]
[311581005,1705254640736,-500.0,0.00027397,2]
[311581007,1705254640746,-500.0,0.00027397,2]
[311581009,1705254640755,-500.0,0.00027397,2]
[311581010,1705254640764,-500.0,0.00027397,2]
[311581011,1705254640774,-500.0,0.00027397,2]
[311581012,1705254640783,-500.0,0.00027397,2]
[311581013,1705254640792,-500.0,0.00027397,2]
[311581015,1705254640801,-500.0,0.00027397,2]
[311581017,1705254640810,-500.0,0.00027397,2]
[311581019,1705254640820,-500.0,0.00027397,2]
[311581021,1705254640829,-500.0,0.00027397,2]
[311581023,1705254640838,-1145.92,0.00027397,2]
[311581024,1705254640848,-178.22237301,0.00027397,2]
[311581025,1705254640857,-609.97,0.00027397,2]
[311581026,1705254640866,-500.0,0.00027397,2]
[311581027,1705254640876,-500.0,0.00027397,2]
[311581028,1705254640885,-574.05346898,0.00027397,2]
[311581029,1705254640895,-500.0,0.00027397,2]
[311581030,1705254640904,-500.86888601,0.00027397,2]
[311581031,1705254640913,-500.0,0.00027397,2]
[311581032,1705254640923,-500.0,0.00027397,2]
[311581033,1705254640932,-500.0,0.00027397,2]
[311581034,1705254640941,-500.0,0.00027397,2]
[311581035,1705254640951,-500.0,0.00027397,2]
[311581036,1705254640961,-500.0,0.00027397,2]
[311581037,1705254640970,-500.0,0.00027397,2]
[311581038,1705254640979,-500.0,0.00027397,2]
[311581039,1705254640989,-1707.15,0.00027397,2]
[311581040,1705254640998,-500.0,0.00027397,2]
[311581041,1705254641008,-500.0,0.00027397,2]
[311581042,1705254641017,-500.0,0.00027397,2]
[311581043,1705254641027,-500.0,0.00027397,2]
[311581044,1705254641036,-500.0,0.00027397,2]
[311581045,1705254641044,-500.0,0.00027397,2]
[311581046,1705254641053,-500.0,0.00027397,2]
[311581047,1705254641062,-500.0,0.00027397,2]
[311581049,1705254641072,-500.0,0.00027397,2]
[311581051,1705254641080,-500.0,0.00027397,2]
[311581053,1705254641090,-232.90343544,0.00027397,2]
[311581055,1705254641099,-572.49159193,0.00027397,2]
[311581057,1705254641108,-500.0,0.00027397,2]
[311581058,1705254641117,-1445.66,0.00027397,2]
[311581060,1705254641126,-1445.66,0.00027397,2]
[311581062,1705254641135,-1445.66,0.00027397,2]
[311581064,1705254641144,-1445.66,0.00027397,2]
[311581066,1705254641153,-1445.66,0.00027397,2]
[311581068,1705254641162,-1445.66,0.00027397,2]
[311581070,1705254641171,-1445.66,0.00027397,2]
[311581072,1705254641180,-500.0,0.00027397,2]
[311581074,1705254641190,-197.21554855,0.00027397,2]
[311581076,1705254641199,-381.60232911,0.00027397,2]
[311581078,1705254641208,-508.42158599,0.00027397,2]
[311581080,1705254641216,-500.0,0.00027397,2]
[311581081,1705254641226,-500.0,0.00027397,2]
[311581083,1705254641235,-525.54838784,0.00027397,2]
[311581085,1705254641244,-522.11357524,0.00027397,2]
[311581087,1705254641253,-500.0,0.00027397,2]
[311581089,1705254641262,-1623.89718729,0.00027397,2]
[311581091,1705254641271,-500.0,0.00027397,2]
[311581093,1705254641279,-500.0,0.00027397,2]
[311581095,1705254641288,-572.34395798,0.00027397,2]
[311581097,1705254641297,-740.04,0.00027397,2]
[311581099,1705254641306,-559.17037856,0.00027397,2]
[311581101,1705254641315,-355.40945307,0.00027397,2]
[311581103,1705254641324,-465.19455805,0.00027397,2]
[311581105,1705254641333,-500.0,0.00027397,2]
[311581107,1705254641343,-500.0,0.00027397,2]
[311581109,1705254641352,-500.0,0.00027397,2]
[311581111,1705254641362,-500.0,0.00027397,2]
[311581112,1705254641372,-500.0,0.00027397,2]
[311581114,1705254641381,-500.0,0.00027397,2]
[311581116,1705254641390,-167.86399626,0.00027397,2]
[311581118,1705254641399,-500.0,0.00027397,2]
[311581119,1705254641408,-500.0,0.00027397,2]
[311581120,1705254641418,-494.18805421,0.00027397,2]
[311581121,1705254641427,-3116.45,0.00027397,2]
[311581123,1705254641437,-1202.04,0.00027397,2]
[311581125,1705254641446,-500.0,0.00027397,2]
[311581127,1705254641455,-500.0,0.00027397,2]
[311581129,1705254641464,-507.91,0.00027397,2]
[311581131,1705254641472,-500.0,0.00027397,2]
[311581133,1705254641481,-382.37264958,0.00027397,2]
[311581135,1705254641490,-500.0,0.00027397,2]
[311581137,1705254641500,-250.30709217,0.00027397,2]
[311581139,1705254641509,-500.0,0.00027397,2]
[311581141,1705254641518,-500.0,0.00027397,2]
[311581143,1705254641526,-500.0,0.00027397,2]
[311581145,1705254641535,-500.0,0.00027397,2]
[311581154,1705254641617,-500.0,0.00027397,2]
[311581156,1705254641626,-500.0,0.00027397,2]
[311581158,1705254641636,-500.0,0.00027397,2]
[311581160,1705254641645,-1509.17,0.00027397,2]
[311581162,1705254641655,-500.0,0.00027397,2]
[311581164,1705254641665,-414.69913513,0.00027397,2]
[311581166,1705254641674,-500.0,0.00027397,2]
[311581168,1705254641684,-500.0,0.00027397,2]
[311581170,1705254641693,-3947.1,0.00027397,2]
[311581172,1705254641703,-500.0,0.00027397,2]
[311581174,1705254641712,-500.0,0.00027397,2]
[311581176,1705254641720,-505.86534392,0.00027397,2]
[311581178,1705254641729,-1756.25,0.00027397,2]
[311581180,1705254641739,-501.91288507,0.00027397,2]
[311581182,1705254641748,-288.23732687,0.00027397,2]
[311581184,1705254641756,-573.05,0.00027397,2]
[311581186,1705254641765,-500.0,0.00027397,2]
[311581188,1705254641775,-500.0,0.00027397,2]
[311581190,1705254641784,-1438.12,0.00027397,2]
[311581192,1705254641793,-613.18,0.00027397,2]
[311581194,1705254641802,-508.708221,0.00027397,2]
[311581196,1705254641810,-500.0,0.00027397,2]
[311581198,1705254641819,-616.28,0.00027397,2]
[311581200,1705254641829,-500.0,0.00027397,2]
[311581201,1705254641838,-500.0,0.00027397,2]
[311581203,1705254641846,-9239.43,0.00027397,2]
[311581206,1705254641856,-506.96874557,0.00027397,2]
[311581207,1705254641865,-500.0,0.00027397,2]
[311581210,1705254641875,-500.0,0.00027397,2]
[311581211,1705254641884,-517.97504312,0.00027397,2]
[311581214,1705254641893,-500.0,0.00027397,2]
[311581215,1705254641902,-500.0,0.00027397,2]
[311581217,1705254641911,-300.78084673,0.00027397,2]
[311581219,1705254641920,-12220.81,0.00027397,2]
[311581221,1705254641929,-500.0,0.00027397,2]
[311581223,1705254641937,-500.0,0.00027397,2]
[311581225,1705254641947,-2045.14,0.00027397,2]
[311581227,1705254641956,-500.0,0.00027397,2]
[311581229,1705254641965,-500.0,0.00027397,2]
[311581231,1705254641974,-500.0,0.00027397,2]
[311581233,1705254641983,-507.33239193,0.00027397,2]
[311581235,1705254641992,-502.49174648,0.00027397,2]
[311581237,1705254642002,-500.0,0.00027397,2]
[311581239,1705254642011,-506.31192834,0.00027397,2]
[311581241,1705254642021,-500.0,0.00027397,2]
[311581243,1705254642034,-5022.71,0.00027397,2]
[311581245,1705254642042,-500.0,0.00027397,2]
[311581247,1705254642051,-500.0,0.00027397,2]
[311581249,1705254642060,-500.0,0.00027397,2]
[311581251,1705254642070,-500.0,0.00027397,2]
[311581253,1705254642079,-600.91,0.00027397,2]
[311581255,1705254642088,-401.34866574,0.00027397,2]
[311581257,1705254642096,-500.0,0.00027397,2]
[311581259,1705254642106,-500.0,0.00027397,2]
[311581261,1705254642115,-500.0,0.00027397,2]
[311581263,1705254642124,-500.0,0.00027397,2]
[311581265,1705254642133,-500.0,0.00027397,2]
[311581267,1705254642142,-500.0,0.00027397,2]
[311581269,1705254642151,-500.0,0.00027397,2]
[311581270,1705254642161,-500.0,0.00027397,2]
[311581273,1705254642171,-500.0,0.00027397,2]
[311581275,1705254642181,-510.02881008,0.00027397,2]
[311581276,1705254642190,-500.0,0.00027397,2]
[311581278,1705254642199,-500.0,0.00027397,2]
[311581280,1705254642209,-500.0,0.00027397,2]
[311581282,1705254642217,-500.0,0.00027397,2]
[311581284,1705254642226,-500.0,0.00027397,2]
[311581286,1705254642235,-500.0,0.00027397,2]
[311581288,1705254642244,-500.0,0.00027397,2]
[311581290,1705254642253,-1813.05,0.00027397,2]
[311581292,1705254642261,-500.0,0.00027397,2]
[311581294,1705254642270,-653.77,0.00027397,2]
[311581296,1705254642280,-283.19708064,0.00027397,2]
[311581298,1705254642289,-500.0,0.00027397,2]
[311581300,1705254642298,-510.88502478,0.00027397,2]
[311581302,1705254642306,-200.0,0.00027397,2]
[311581304,1705254642316,-500.0,0.00027397,2]
[311581306,1705254642325,-500.0,0.00027397,2]
[311581308,1705254642334,-508.05153115,0.00027397,2]
[311581310,1705254642345,-500.0,0.00027397,2]
[311581312,1705254642354,-902.86,0.00027397,2]
[311581314,1705254642362,-500.0,0.00027397,2]
[311581316,1705254642371,-500.0,0.00027397,2]
[311581318,1705254642380,-564.96,0.00027397,2]
[311581320,1705254642389,-7932.25,0.00027397,2]
[311581322,1705254642399,-549.77,0.00027397,2]
[311581324,1705254642409,-325.94231733,0.00027397,2]
[311581326,1705254642418,-500.0,0.00027397,2]
[311581328,1705254642427,-500.0,0.00027397,2]
[311581330,1705254642436,-1250.0,0.00027397,2]
[311581332,1705254642445,-500.0,0.00027397,2]
[311581334,1705254642454,-500.0,0.00027397,2]
[311581336,1705254642463,-3903.04,0.00027397,2]
[311581338,1705254642472,-20393.0,0.00027397,2]
[311581340,1705254642481,-202.62779638,0.00027397,2]
[311581342,1705254642490,-500.0,0.00027397,2]
[311581344,1705254642498,-500.0,0.00027397,2]
[311581346,1705254642508,-500.0,0.00027397,2]
[311581348,1705254642516,-500.0,0.00027397,2]
[311581350,1705254642525,-273.96352238,0.00027397,2]
[311581352,1705254642535,-500.0,0.00027397,2]
[311581354,1705254642544,-500.0,0.00027397,2]
[311581356,1705254642553,-551.67974669,0.00027397,2]
[311581358,1705254642561,-500.0,0.00027397,2]
[311581360,1705254642570,-500.0,0.00027397,2]
[311581362,1705254642579,-500.0,0.00027397,2]
[311581364,1705254642588,-2381.85,0.00027397,2]
[311581366,1705254642597,-35435.49,0.00027397,2]
[311581368,1705254642606,-500.0,0.00027397,2]
[311581370,1705254642615,-1072.66,0.00027397,2]
[311581372,1705254642625,-500.0,0.00027397,2]
[311581374,1705254642633,-500.0,0.00027397,2]
[311581376,1705254642642,-500.0,0.00027397,2]
[311581378,1705254642652,-500.0,0.00027397,2]
[311581380,1705254642661,-500.0,0.00027397,2]
[311581382,1705254642670,-500.0,0.00027397,2]
[311581384,1705254642679,-256.16370604,0.00027397,2]
[311581386,1705254642688,-500.0,0.00027397,2]
[311581388,1705254642697,-516.0820089,0.00027397,2]
[311581390,1705254642706,-427.50462992,0.00027397,2]
[311581392,1705254642715,-500.0,0.00027397,2]
[311581394,1705254642724,-2132.11,0.00027397,2]
[311581396,1705254642733,-500.0,0.00027397,2]
[311581398,1705254642741,-500.0,0.00027397,2]
[311581400,1705254642750,-261.96373897,0.00027397,2]
[311581402,1705254642759,-500.0,0.00027397,2]
[311581404,1705254642767,-530.50063777,0.00027397,2]
[311581405,1705254642777,-500.0,0.00027397,2]
[311581408,1705254642786,-500.0,0.00027397,2]
[311581409,1705254642795,-500.0,0.00027397,2]
[311581411,1705254642804,-406.80805071,0.00027397,2]
[311581413,1705254642813,-500.0,0.00027397,2]
[311581415,1705254642821,-500.0,0.00027397,2]
[311581417,1705254642831,-500.0,0.00027397,2]
[311581419,1705254642840,-593.35,0.00027397,2]
[311581421,1705254642849,-500.0,0.00027397,2]
[311581423,1705254642858,-500.0,0.00027397,2]
[311581425,1705254642868,-1250.98,0.00027397,2]
[311581427,1705254642877,-500.0,0.00027397,2]
[311581429,1705254642887,-500.0,0.00027397,2]
[311581431,1705254642896,-500.0,0.00027397,2]
[311581433,1705254642905,-500.0,0.00027397,2]
[311581435,1705254642914,-1667.87,0.00027397,2]
[311581437,1705254642924,-502.81637563,0.00027397,2]
[311581439,1705254642933,-500.0,0.00027397,2]
[311581441,1705254642942,-500.0,0.00027397,2]
[311581443,1705254642952,-500.0,0.00027397,2]
[311581445,1705254642961,-500.0,0.00027397,2]
[311581447,1705254642971,-500.45685552,0.00027397,2]
[311581449,1705254642980,-500.0,0.00027397,2]
[311581451,1705254642989,-929.87,0.00027397,2]
[311581453,1705254642998,-648.62091387,0.00027397,2]
[311581455,1705254643007,-500.0,0.00027397,2]
[311581457,1705254643016,-500.0,0.00027397,2]
[311581459,1705254643025,-500.0,0.00027397,2]
[311581461,1705254643034,-500.0,0.00027397,2]
[311581463,1705254643043,-500.0,0.00027397,2]
[311581465,1705254643052,-935.05,0.00027397,2]
[311581467,1705254643061,-500.0,0.00027397,2]
[311581469,1705254643070,-500.0,0.00027397,2]
[311581471,1705254643079,-500.0,0.00027397,2]
[311581473,1705254643114,-868.52,0.00027397,2]
[311581475,1705254643123,-500.0,0.00027397,2]
[311581477,1705254643132,-155.39027644,0.00027397,2]
[311581479,1705254643141,-500.0,0.00027397,2]
[311581481,1705254643149,-500.0,0.00027397,2]
[311581483,1705254643158,-500.0,0.00027397,2]
[311581485,1705254643166,-500.0,0.00027397,2]
[311581487,1705254643175,-8254.29,0.00027397,2]
[311581489,1705254643184,-500.0,0.00027397,2]
[311581491,1705254643193,-3237.08,0.00027397,2]
[311581493,1705254643202,-500.0,0.00027397,2]
[311581495,1705254643210,-500.0,0.00027397,2]
[311581497,1705254643219,-500.0,0.00027397,2]
[311581499,1705254643231,-500.0,0.00027397,2]
[311581501,1705254643240,-500.0,0.00027397,2]
[311581503,1705254643248,-500.0,0.00027397,2]
[311581505,1705254643257,-500.0,0.00027397,2]
[311581507,1705254643266,-500.0,0.00027397,2]
[311581509,1705254643275,-500.0,0.00027397,2]
[311581511,1705254643284,-500.0,0.00027397,2]
[311581520,1705254643363,-500.0,0.00027397,2]
[311581522,1705254643372,-500.0,0.00027397,2]
[311581523,1705254643381,-521.2196797,0.00027397,2]
[311581524,1705254643390,-500.0,0.00027397,2]
[311581525,1705254643399,-640.0111871,0.00027397,2]
[311581526,1705254643408,-1112.47,0.00027397,2]
[311581527,1705254643417,-500.0,0.00027397,2]
[311581528,1705254643426,-500.0,0.00027397,2]
[311581529,1705254643435,-967.79,0.00027397,2]
[311581530,1705254643444,-160.17843978,0.0002748,2]
[311581531,1705254643453,-1445.66,0.00027495,2]
[311581532,1705254643461,-500.0,0.00027496,2]
[311581534,1705254643470,-500.0,0.00027496,2]
[311581536,1705254643479,-500.0,0.00027496,2]
[311581538,1705254643488,-500.0,0.00027496,2]
[311581540,1705254643497,-500.0,0.00027496,2]
[311581542,1705254643506,-500.0,0.00027496,2]
[311581544,1705254643516,-500.0,0.00027496,2]
[311581547,1705254643525,-500.0,0.00027496,2]
[311581550,1705254643534,-1445.66,0.00027496,2]
[311581553,1705254643543,-500.0,0.00027498,2]
[311581557,1705254643552,-1445.66,0.00027498,2]
[311581561,1705254643561,-500.0,0.00027534,2]
[311581563,1705254643570,-160.17843978,0.00027571,2]
[311581565,1705254643579,-1445.66,0.0002767,2]
[311581567,1705254643588,-418.17951155,0.0002767,4]
[311581569,1705254643598,-649.81468027,0.0002767,4]
[311581571,1705254643607,-500.0,0.00027671,2]
[311581573,1705254643615,-500.0,0.00027671,2]
[311581576,1705254643624,-500.0,0.00027671,2]
[311581579,1705254643632,-522.80753805,0.00027671,2]
[311581582,1705254643642,-500.0,0.00027671,2]
[311581584,1705254643651,-500.0,0.00027671,2]
[311581587,1705254643660,-500.0,0.00027671,2]
[311581590,1705254643669,-500.0,0.00027671,2]
[311581592,1705254643678,-500.0,0.00027671,2]
[311581594,1705254643686,-500.0,0.00027671,2]
[311581596,1705254643695,-500.0,0.00027671,2]
[311581598,1705254643704,-502.5188286,0.00027671,2]
[311581601,1705254643712,-501.0410312,0.00027671,2]
[311581603,1705254643721,-349.82002498,0.00027671,2]
[311581606,1705254643730,-401.11191083,0.00027671,2]
[311581608,1705254643739,-500.0,0.00027671,2]
[311581610,1705254643748,-504.4552916,0.00027671,2]
[311581612,1705254643757,-500.0,0.00027671,2]
[311581614,1705254643768,-500.0,0.00027671,2]
[311581616,1705254643777,-383.49442707,0.00027671,2]
[311581618,1705254643786,-500.0,0.00027671,2]
[311581620,1705254643795,-500.0,0.00027671,2]
[311581622,1705254643804,-500.0,0.00027671,2]
[311581624,1705254643813,-500.0,0.00027671,2]
[311581626,1705254643822,-500.0,0.00027671,2]
[311581628,1705254643831,-500.0,0.00027671,2]
[311581630,1705254643841,-500.0,0.00027671,2]
[311581632,1705254643851,-500.0,0.00027671,2]
[311581634,1705254643860,-500.0,0.00027671,2]
[311581636,1705254643868,-507.93,0.00027671,2]
[311581638,1705254643878,-500.0,0.00027671,2]
[311581640,1705254643887,-500.0,0.00027671,2]